[Event "Early-Titled-Tuesday-Blitz-July-09-2024"]
[Site "Chess.com"]
[Date "2024.07.09"]
[Round "10"]
[White "cmunda"]
[Black "Navyblue1"]
[Result "0-1"]
[WhiteElo "2087"]
[BlackElo "2123"]
[TimeControl "180+1"]
[EndTime "9:52:43 PDT"]
[Termination "Navyblue1 won by checkmate"]

1. e4 {[%clk 0:03:00.9]} 1... c5 {[%clk 0:03:00.4]} 2. c3 {[%clk 0:03:00.6]}
2... Nf6 {[%clk 0:02:59.5]} 3. e5 {[%clk 0:03:00.4]} 3... Nd5 {[%clk 0:02:59.3]}
4. d4 {[%clk 0:03:01.3]} 4... cxd4 {[%clk 0:02:59.7]} 5. Nf3 {[%clk 0:03:02.2]}
5... d6 {[%clk 0:02:57.5]} 6. cxd4 {[%clk 0:03:02.1]} 6... Nc6 {[%clk
0:02:56.9]} 7. Nc3 {[%clk 0:03:02.2]} 7... Nxc3 {[%clk 0:02:52.8]} 8. bxc3
{[%clk 0:03:03.1]} 8... dxe5 {[%clk 0:02:53]} 9. d5 {[%clk 0:03:03.4]} 9... Nb8
{[%clk 0:02:50.7]} 10. Nxe5 {[%clk 0:03:02]} 10... a6 {[%clk 0:02:31.1]} 11. Qf3
{[%clk 0:02:58]} 11... f6 {[%clk 0:02:28.5]} 12. Qh5+ {[%clk 0:02:52.4]} 12...
g6 {[%clk 0:02:27.1]} 13. Nxg6 {[%clk 0:02:52.5]} 13... hxg6 {[%clk 0:02:25.9]}
14. Qxh8 {[%clk 0:02:49.3]} 14... Qxd5 {[%clk 0:02:25.6]} 15. Bd2 {[%clk
0:02:33.3]} 15... Qe5+ {[%clk 0:02:17.9]} 16. Be2 {[%clk 0:02:28.1]} 16... Bf5
{[%clk 0:02:12.4]} 17. O-O-O {[%clk 0:02:08]} 17... Qxe2 {[%clk 0:02:01.9]} 18.
Rhe1 {[%clk 0:02:04.5]} 18... Qb5 {[%clk 0:02:00]} 19. Bh6 {[%clk 0:01:55.6]}
19... Qb1+ {[%clk 0:01:57.4]} 20. Kd2 {[%clk 0:01:55.7]} 20... Qd3+ {[%clk
0:01:57.2]} 21. Kc1 {[%clk 0:01:53.9]} 21... Qc2# {[%clk 0:01:56.9]} 0-1

[Event "Early-Titled-Tuesday-Blitz-July-09-2024"]
[Site "Chess.com"]
[Date "2024.07.09"]
[Round "10"]
[White "Alina_Gumerovna"]
[Black "NMChessToImpress"]
[Result "0-1"]
[WhiteElo "2070"]
[BlackElo "2307"]
[TimeControl "180+1"]
[EndTime "9:52:47 PDT"]
[Termination "NMChessToImpress won by resignation"]

1. e4 {[%clk 0:02:57.8]} 1... e6 {[%clk 0:03:00.3]} 2. d4 {[%clk 0:02:57.4]}
2... d5 {[%clk 0:03:00.4]} 3. exd5 {[%clk 0:02:57.3]} 3... exd5 {[%clk
0:03:00.4]} 4. Bd3 {[%clk 0:02:57.4]} 4... Bd6 {[%clk 0:03:00.5]} 5. Qf3 {[%clk
0:02:57.1]} 5... Nc6 {[%clk 0:02:57.6]} 6. c3 {[%clk 0:02:55.8]} 6... Nf6 {[%clk
0:02:57.7]} 7. h3 {[%clk 0:02:55.9]} 7... O-O {[%clk 0:02:56.9]} 8. Ne2 {[%clk
0:02:56]} 8... Re8 {[%clk 0:02:55.4]} 9. O-O {[%clk 0:02:56]} 9... Ne4 {[%clk
0:02:49.8]} 10. Nf4 {[%clk 0:02:43.2]} 10... Be6 {[%clk 0:01:59.4]} 11. Nd2
{[%clk 0:02:29.2]} 11... Bxf4 {[%clk 0:01:45.9]} 12. Qxf4 {[%clk 0:02:30.1]}
12... f5 {[%clk 0:01:27.9]} 13. f3 {[%clk 0:02:26]} 13... Nd6 {[%clk 0:01:28.1]}
14. Nb3 {[%clk 0:02:22.3]} 14... b6 {[%clk 0:01:27.1]} 15. Bb5 {[%clk
0:02:14.5]} 15... Nxb5 {[%clk 0:01:23.3]} 0-1

[Event "Early-Titled-Tuesday-Blitz-July-09-2024"]
[Site "Chess.com"]
[Date "2024.07.09"]
[Round "10"]
[White "madmax011"]
[Black "Millerkallpa"]
[Result "1-0"]
[WhiteElo "2359"]
[BlackElo "2240"]
[TimeControl "180+1"]
[EndTime "9:53:05 PDT"]
[Termination "madmax011 won by checkmate"]

1. d4 {[%clk 0:03:00.9]} 1... Nf6 {[%clk 0:02:58.2]} 2. c4 {[%clk 0:03:00.9]}
2... c5 {[%clk 0:02:58.6]} 3. d5 {[%clk 0:02:59.6]} 3... b5 {[%clk 0:02:57.6]}
4. cxb5 {[%clk 0:02:59.4]} 4... a6 {[%clk 0:02:57.8]} 5. bxa6 {[%clk 0:02:59.9]}
5... d6 {[%clk 0:02:57.2]} 6. Nc3 {[%clk 0:02:59.2]} 6... Bxa6 {[%clk 0:02:57]}
7. Nf3 {[%clk 0:02:56]} 7... g6 {[%clk 0:02:55.9]} 8. e3 {[%clk 0:02:52.6]} 8...
Bxf1 {[%clk 0:02:54.5]} 9. Kxf1 {[%clk 0:02:53.2]} 9... Bg7 {[%clk 0:02:55.1]}
10. g3 {[%clk 0:02:53.6]} 10... O-O {[%clk 0:02:54.5]} 11. Kg2 {[%clk
0:02:54.2]} 11... Qb6 {[%clk 0:02:52.8]} 12. a4 {[%clk 0:02:53.3]} 12... Na6
{[%clk 0:02:52.3]} 13. Re1 {[%clk 0:02:48.7]} 13... Nb4 {[%clk 0:02:51]} 14. e4
{[%clk 0:02:45.8]} 14... Rfb8 {[%clk 0:02:45.5]} 15. Bf4 {[%clk 0:02:39.2]}
15... Nh5 {[%clk 0:02:41.5]} 16. Bg5 {[%clk 0:02:37.8]} 16... Rb7 {[%clk
0:02:34]} 17. Nb5 {[%clk 0:02:31]} 17... h6 {[%clk 0:02:28.5]} 18. Be3 {[%clk
0:02:28.9]} 18... Bxb2 {[%clk 0:02:20.8]} 19. Rb1 {[%clk 0:02:24.4]} 19... Bd4
{[%clk 0:02:06.3]} 20. Nfxd4 {[%clk 0:02:14.9]} 20... cxd4 {[%clk 0:02:05.5]}
21. Bxd4 {[%clk 0:02:14.5]} 21... Qa5 {[%clk 0:02:04.7]} 22. Qd2 {[%clk
0:02:03.3]} 22... Qxa4 {[%clk 0:01:57.7]} 23. Rxb4 {[%clk 0:01:59.2]} 23... Qa6
{[%clk 0:01:54.8]} 24. Qxh6 {[%clk 0:01:49.4]} 24... Rxb5 {[%clk 0:01:50.3]} 25.
Qh8# {[%clk 0:01:48.6]} 1-0

[Event "Early-Titled-Tuesday-Blitz-July-09-2024"]
[Site "Chess.com"]
[Date "2024.07.09"]
[Round "10"]
[White "ilqar_74"]
[Black "BeanScreen"]
[Result "0-1"]
[WhiteElo "2872"]
[BlackElo "2717"]
[TimeControl "180+1"]
[EndTime "9:53:07 PDT"]
[Termination "BeanScreen won by resignation"]

1. e4 {[%clk 0:03:00.9]} 1... e5 {[%clk 0:03:00.1]} 2. Nf3 {[%clk 0:02:59.6]}
2... Nc6 {[%clk 0:03:00.5]} 3. Bb5 {[%clk 0:02:59.3]} 3... f5 {[%clk 0:03:00.2]}
4. d3 {[%clk 0:02:58.2]} 4... fxe4 {[%clk 0:03:00.2]} 5. dxe4 {[%clk 0:02:59.1]}
5... Nf6 {[%clk 0:03:00.5]} 6. O-O {[%clk 0:02:59.5]} 6... d6 {[%clk 0:03:00.5]}
7. Nc3 {[%clk 0:02:56.4]} 7... Be7 {[%clk 0:03:00.1]} 8. Bc4 {[%clk 0:02:56.9]}
8... Na5 {[%clk 0:02:59.6]} 9. Bb5+ {[%clk 0:02:53.5]} 9... Nc6 {[%clk
0:02:59.2]} 10. Bc4 {[%clk 0:02:53.6]} 10... Na5 {[%clk 0:02:59.5]} 11. Be2
{[%clk 0:02:54.2]} 11... O-O {[%clk 0:02:58.2]} 12. Bd2 {[%clk 0:02:54.3]} 12...
Kh8 {[%clk 0:02:55.1]} 13. Nd5 {[%clk 0:02:52.5]} 13... Nc6 {[%clk 0:02:52.7]}
14. Nxf6 {[%clk 0:02:49.2]} 14... Bxf6 {[%clk 0:02:53.6]} 15. Be3 {[%clk
0:02:48.4]} 15... Be6 {[%clk 0:02:52]} 16. Qd2 {[%clk 0:02:46]} 16... Qe8 {[%clk
0:02:50.7]} 17. Ng5 {[%clk 0:02:45.5]} 17... Bxg5 {[%clk 0:02:45.8]} 18. Bxg5
{[%clk 0:02:45.5]} 18... Qg6 {[%clk 0:02:46.6]} 19. f3 {[%clk 0:02:42]} 19...
Nd4 {[%clk 0:02:44.1]} 20. Be3 {[%clk 0:02:42.4]} 20... Nxe2+ {[%clk 0:02:41.6]}
21. Qxe2 {[%clk 0:02:43.3]} 21... Rf7 {[%clk 0:02:36.2]} 22. c4 {[%clk 0:02:42]}
22... Raf8 {[%clk 0:02:24.2]} 23. Rad1 {[%clk 0:02:31.6]} 23... a6 {[%clk
0:02:11.6]} 24. c5 {[%clk 0:02:31.4]} 24... Bd7 {[%clk 0:02:09]} 25. Rf2 {[%clk
0:01:52.9]} 25... Bb5 {[%clk 0:02:07.4]} 26. Qe1 {[%clk 0:01:53.1]} 26... Rxf3
{[%clk 0:02:05.3]} 27. Rxf3 {[%clk 0:01:52.8]} 27... Rxf3 {[%clk 0:02:06.2]} 28.
cxd6 {[%clk 0:01:52.1]} 28... Rf1+ {[%clk 0:01:59.6]} 29. Qxf1 {[%clk
0:01:44.9]} 29... Bxf1 {[%clk 0:02:00.5]} 30. Rxf1 {[%clk 0:01:44.1]} 30... Qxd6
{[%clk 0:02:00.3]} 0-1

[Event "Early-Titled-Tuesday-Blitz-July-09-2024"]
[Site "Chess.com"]
[Date "2024.07.09"]
[Round "10"]
[White "ljuks68"]
[Black "JordanLoyd2020"]
[Result "0-1"]
[WhiteElo "2406"]
[BlackElo "2520"]
[TimeControl "180+1"]
[EndTime "9:53:09 PDT"]
[Termination "JordanLoyd2020 won by resignation"]

1. e4 {[%clk 0:03:00.9]} 1... c5 {[%clk 0:02:59.7]} 2. Nf3 {[%clk 0:03:00.9]}
2... Nc6 {[%clk 0:03:00.4]} 3. d4 {[%clk 0:03:01.3]} 3... cxd4 {[%clk
0:03:01.3]} 4. Nxd4 {[%clk 0:03:01.8]} 4... g6 {[%clk 0:03:02]} 5. c4 {[%clk
0:03:01.5]} 5... Nf6 {[%clk 0:03:02.4]} 6. Nc3 {[%clk 0:03:00.9]} 6... d6 {[%clk
0:03:02.8]} 7. Be2 {[%clk 0:02:59.5]} 7... Nxd4 {[%clk 0:03:02.2]} 8. Qxd4
{[%clk 0:03:00.1]} 8... Bg7 {[%clk 0:03:03]} 9. Be3 {[%clk 0:03:00.3]} 9... O-O
{[%clk 0:03:03.5]} 10. Qd2 {[%clk 0:03:00.9]} 10... a5 {[%clk 0:03:03.9]} 11. f3
{[%clk 0:03:00.9]} 11... a4 {[%clk 0:03:04.2]} 12. Rc1 {[%clk 0:03:00.3]} 12...
Be6 {[%clk 0:03:03.5]} 13. Nd5 {[%clk 0:02:55.2]} 13... Nd7 {[%clk 0:02:56.3]}
14. O-O {[%clk 0:02:38.2]} 14... Bxd5 {[%clk 0:02:54.9]} 15. cxd5 {[%clk
0:02:35.9]} 15... Nc5 {[%clk 0:02:42.3]} 16. Qb4 {[%clk 0:02:20.8]} 16... Qa5
{[%clk 0:02:35.3]} 17. Rc4 {[%clk 0:01:56.8]} 17... b5 {[%clk 0:02:11.8]} 18.
Qxa5 {[%clk 0:01:34.5]} 18... Rxa5 {[%clk 0:02:12.7]} 19. Rb4 {[%clk 0:01:34.9]}
19... Rb8 {[%clk 0:02:11.9]} 20. Rc1 {[%clk 0:01:33.6]} 20... Na6 {[%clk
0:02:02]} 21. Rxb5 {[%clk 0:01:33.1]} 21... Raxb5 {[%clk 0:02:01.6]} 22. Bxb5
{[%clk 0:01:33.3]} 22... Rxb5 {[%clk 0:02:02.3]} 23. Rc8+ {[%clk 0:01:33]} 23...
Bf8 {[%clk 0:02:02.8]} 24. Bh6 {[%clk 0:01:33.2]} 24... Rb8 {[%clk 0:02:02.6]}
0-1

[Event "Early-Titled-Tuesday-Blitz-July-09-2024"]
[Site "Chess.com"]
[Date "2024.07.09"]
[Round "10"]
[White "PapaieDudu"]
[Black "WPWPWP-2015"]
[Result "1-0"]
[WhiteElo "2411"]
[BlackElo "2503"]
[TimeControl "180+1"]
[EndTime "9:53:16 PDT"]
[Termination "PapaieDudu won by resignation"]

1. Nf3 {[%clk 0:03:00.9]} 1... Nf6 {[%clk 0:02:59.5]} 2. d4 {[%clk 0:03:00.8]}
2... d5 {[%clk 0:02:56.6]} 3. c4 {[%clk 0:03:00.9]} 3... c6 {[%clk 0:02:55.6]}
4. Nc3 {[%clk 0:03:01.2]} 4... e6 {[%clk 0:02:54.4]} 5. Bg5 {[%clk 0:03:00.9]}
5... h6 {[%clk 0:02:53.6]} 6. Bh4 {[%clk 0:03:00.4]} 6... dxc4 {[%clk
0:02:51.6]} 7. a4 {[%clk 0:03:00]} 7... g5 {[%clk 0:02:50.5]} 8. Bg3 {[%clk
0:02:59.9]} 8... Bb4 {[%clk 0:02:45.8]} 9. Nd2 {[%clk 0:02:59.2]} 9... Qxd4
{[%clk 0:02:42.6]} 10. e3 {[%clk 0:02:57.1]} 10... Qc5 {[%clk 0:02:38]} 11. Bxc4
{[%clk 0:02:50.2]} 11... Ne4 {[%clk 0:02:27.6]} 12. Ndxe4 {[%clk 0:02:48.5]}
12... Qxc4 {[%clk 0:02:24.8]} 13. Nd6+ {[%clk 0:02:32.2]} 13... Bxd6 {[%clk
0:02:22]} 14. Qxd6 {[%clk 0:02:25.6]} 14... Nd7 {[%clk 0:02:19.5]} 15. O-O-O
{[%clk 0:02:24.9]} 15... a5 {[%clk 0:02:06.8]} 16. Be5 {[%clk 0:02:24.3]} 16...
Rg8 {[%clk 0:01:59.7]} 17. Bf6 {[%clk 0:02:17.8]} 17... Qb4 {[%clk 0:01:56.4]}
18. Qc7 {[%clk 0:02:14.5]} 18... Qe7 {[%clk 0:01:23.9]} 19. Bxe7 {[%clk
0:02:12]} 19... Kxe7 {[%clk 0:01:24.8]} 20. Ne4 {[%clk 0:02:10.8]} 20... Rd8
{[%clk 0:01:13.3]} 21. Qd6+ {[%clk 0:02:09.3]} 21... Ke8 {[%clk 0:01:11.8]} 22.
Nf6+ {[%clk 0:02:08.9]} 1-0

[Event "Early-Titled-Tuesday-Blitz-July-09-2024"]
[Site "Chess.com"]
[Date "2024.07.09"]
[Round "10"]
[White "Smiechu"]
[Black "KVAIDAN"]
[Result "1-0"]
[WhiteElo "2446"]
[BlackElo "2321"]
[TimeControl "180+1"]
[EndTime "9:53:20 PDT"]
[Termination "Smiechu won by resignation"]

1. e4 {[%clk 0:03:00.9]} 1... e5 {[%clk 0:02:59.4]} 2. Nf3 {[%clk 0:03:00]} 2...
d5 {[%clk 0:02:58.6]} 3. Nxe5 {[%clk 0:02:58.9]} 3... Bd6 {[%clk 0:02:58.2]} 4.
d4 {[%clk 0:02:58.2]} 4... dxe4 {[%clk 0:02:53.7]} 5. Nc4 {[%clk 0:02:52]} 5...
Nf6 {[%clk 0:02:46.8]} 6. Nxd6+ {[%clk 0:02:51.3]} 6... Qxd6 {[%clk 0:02:46.2]}
7. Be2 {[%clk 0:02:51.3]} 7... Nc6 {[%clk 0:02:45.2]} 8. Be3 {[%clk 0:02:50.7]}
8... Nd5 {[%clk 0:02:41.7]} 9. c4 {[%clk 0:02:43.9]} 9... Nxe3 {[%clk 0:02:41]}
10. fxe3 {[%clk 0:02:44.1]} 10... Bd7 {[%clk 0:02:34.5]} 11. Nc3 {[%clk
0:02:39.9]} 11... O-O-O {[%clk 0:02:34.8]} 12. O-O {[%clk 0:02:32.7]} 12... f5
{[%clk 0:02:28.2]} 13. Nb5 {[%clk 0:02:28.8]} 13... Qh6 {[%clk 0:02:26.5]} 14.
Qd2 {[%clk 0:02:16.4]} 14... a6 {[%clk 0:02:26.5]} 15. a4 {[%clk 0:01:59.7]}
15... axb5 {[%clk 0:02:16.7]} 16. axb5 {[%clk 0:01:59.7]} 16... Nb8 {[%clk
0:02:17.3]} 17. Ra8 {[%clk 0:01:59.4]} 17... g5 {[%clk 0:02:03.6]} 18. Rfa1
{[%clk 0:01:55.3]} 18... Qb6 {[%clk 0:01:55.7]} 19. c5 {[%clk 0:01:52.6]} 19...
Qe6 {[%clk 0:01:50.6]} 20. Rxb8+ {[%clk 0:01:40.4]} 20... Kxb8 {[%clk
0:01:50.5]} 21. Qa5 {[%clk 0:01:40.6]} 1-0

[Event "Early-Titled-Tuesday-Blitz-July-09-2024"]
[Site "Chess.com"]
[Date "2024.07.09"]
[Round "10"]
[White "rionelG"]
[Black "guillembaches"]
[Result "0-1"]
[WhiteElo "2429"]
[BlackElo "2546"]
[TimeControl "180+1"]
[EndTime "9:53:25 PDT"]
[Termination "guillembaches won by resignation"]

1. e4 {[%clk 0:03:00.9]} 1... c5 {[%clk 0:02:59.8]} 2. g3 {[%clk 0:03:00.6]}
2... Nc6 {[%clk 0:02:59.2]} 3. Bg2 {[%clk 0:03:00.9]} 3... g6 {[%clk 0:02:59.6]}
4. Ne2 {[%clk 0:03:01.3]} 4... Bg7 {[%clk 0:02:59.9]} 5. c3 {[%clk 0:03:02.1]}
5... e5 {[%clk 0:03:00]} 6. d3 {[%clk 0:03:02.4]} 6... Nge7 {[%clk 0:03:00.1]}
7. Be3 {[%clk 0:03:02.9]} 7... b6 {[%clk 0:02:49.4]} 8. d4 {[%clk 0:03:02.4]}
8... cxd4 {[%clk 0:02:49.3]} 9. cxd4 {[%clk 0:03:01.5]} 9... exd4 {[%clk
0:02:49.4]} 10. Nxd4 {[%clk 0:03:00.9]} 10... O-O {[%clk 0:02:43.4]} 11. Nc3
{[%clk 0:02:59]} 11... Ba6 {[%clk 0:02:36.7]} 12. Qa4 {[%clk 0:02:58.1]} 12...
Qc8 {[%clk 0:02:35.7]} 13. Rc1 {[%clk 0:02:55]} 13... Qb7 {[%clk 0:02:27.1]} 14.
Ndb5 {[%clk 0:02:43.9]} 14... Bxc3+ {[%clk 0:01:55.2]} 15. Rxc3 {[%clk
0:02:37.2]} 15... Bxb5 {[%clk 0:01:47.3]} 16. Qxb5 {[%clk 0:02:36.4]} 16... Rfc8
{[%clk 0:01:47.3]} 17. O-O {[%clk 0:02:33.9]} 17... a6 {[%clk 0:01:44.5]} 18.
Qe2 {[%clk 0:02:27.6]} 18... b5 {[%clk 0:01:44.2]} 19. Rd1 {[%clk 0:02:23.7]}
19... Ne5 {[%clk 0:01:42.5]} 20. Rxc8+ {[%clk 0:02:10.6]} 20... Rxc8 {[%clk
0:01:43.4]} 21. Bd4 {[%clk 0:02:10.3]} 21... N7c6 {[%clk 0:01:41.1]} 22. Bc3
{[%clk 0:02:02.8]} 22... b4 {[%clk 0:01:41.3]} 23. Be1 {[%clk 0:02:02.6]} 23...
Qb6 {[%clk 0:01:37.1]} 24. Kh1 {[%clk 0:01:59]} 24... Nd4 {[%clk 0:01:35.6]} 25.
Qd3 {[%clk 0:01:49.7]} 25... Nxd3 {[%clk 0:01:35.1]} 0-1

[Event "Early-Titled-Tuesday-Blitz-July-09-2024"]
[Site "Chess.com"]
[Date "2024.07.09"]
[Round "10"]
[White "Alex_Banzea"]
[Black "pouya21"]
[Result "1-0"]
[WhiteElo "2717"]
[BlackElo "2847"]
[TimeControl "180+1"]
[EndTime "9:53:44 PDT"]
[Termination "Alex_Banzea won by resignation"]

1. d4 {[%clk 0:03:00.9]} 1... Nf6 {[%clk 0:02:59.5]} 2. Nc3 {[%clk 0:03:01.3]}
2... d5 {[%clk 0:02:58.7]} 3. Bf4 {[%clk 0:03:01.7]} 3... c5 {[%clk 0:02:58]} 4.
e3 {[%clk 0:03:02]} 4... cxd4 {[%clk 0:02:58.3]} 5. exd4 {[%clk 0:03:02.9]} 5...
a6 {[%clk 0:02:55.1]} 6. Bd3 {[%clk 0:03:03.4]} 6... Nc6 {[%clk 0:02:54.6]} 7.
Nge2 {[%clk 0:03:04]} 7... g6 {[%clk 0:02:51.4]} 8. Qd2 {[%clk 0:02:39.8]} 8...
Bf5 {[%clk 0:02:49.4]} 9. O-O-O {[%clk 0:02:32.5]} 9... Rc8 {[%clk 0:02:45.6]}
10. Kb1 {[%clk 0:02:31.7]} 10... b5 {[%clk 0:02:39.9]} 11. f3 {[%clk 0:02:27.5]}
11... Bxd3 {[%clk 0:02:33.2]} 12. cxd3 {[%clk 0:02:28.4]} 12... Bg7 {[%clk
0:02:32.9]} 13. Bh6 {[%clk 0:02:25.3]} 13... O-O {[%clk 0:02:10.5]} 14. h4
{[%clk 0:02:23.5]} 14... Qa5 {[%clk 0:02:11.1]} 15. h5 {[%clk 0:01:29.6]} 15...
b4 {[%clk 0:02:10.3]} 16. hxg6 {[%clk 0:00:53.9]} 16... bxc3 {[%clk 0:01:58.5]}
17. gxh7+ {[%clk 0:00:52.9]} 17... Kh8 {[%clk 0:01:58.6]} 18. Bxg7+ {[%clk
0:00:48]} 18... Kxg7 {[%clk 0:01:58.4]} 19. h8=Q+ {[%clk 0:00:47.3]} 1-0

[Event "Early-Titled-Tuesday-Blitz-July-09-2024"]
[Site "Chess.com"]
[Date "2024.07.09"]
[Round "10"]
[White "Oleksandr_Bortnyk"]
[Black "praveenb2002"]
[Result "1-0"]
[WhiteElo "3063"]
[BlackElo "2848"]
[TimeControl "180+1"]
[EndTime "9:54:28 PDT"]
[Termination "Oleksandr_Bortnyk won by resignation"]

1. d4 {[%clk 0:03:00.9]} 1... Nf6 {[%clk 0:02:55.2]} 2. Nc3 {[%clk 0:03:01.3]}
2... d5 {[%clk 0:02:53.4]} 3. Bf4 {[%clk 0:02:59.6]} 3... Bf5 {[%clk 0:02:49.1]}
4. e3 {[%clk 0:02:58.9]} 4... e6 {[%clk 0:02:49.4]} 5. Nf3 {[%clk 0:02:58.3]}
5... Bb4 {[%clk 0:02:46.4]} 6. Bd3 {[%clk 0:02:57.9]} 6... Bg6 {[%clk
0:02:44.4]} 7. Ne5 {[%clk 0:02:56.8]} 7... Nbd7 {[%clk 0:02:38.9]} 8. h4 {[%clk
0:02:55]} 8... c5 {[%clk 0:02:30.4]} 9. Bb5 {[%clk 0:02:51.5]} 9... Qa5 {[%clk
0:02:25.7]} 10. Bxd7+ {[%clk 0:02:50.1]} 10... Nxd7 {[%clk 0:02:25.5]} 11. O-O
{[%clk 0:02:31.8]} 11... Nxe5 {[%clk 0:02:13.2]} 12. Bxe5 {[%clk 0:02:32.7]}
12... f6 {[%clk 0:02:10.6]} 13. Bg3 {[%clk 0:02:16.7]} 13... Bxc3 {[%clk
0:02:02.2]} 14. bxc3 {[%clk 0:02:17.6]} 14... Qxc3 {[%clk 0:02:02.4]} 15. h5
{[%clk 0:02:08.1]} 15... Bxc2 {[%clk 0:01:45.4]} 16. Qg4 {[%clk 0:02:07.8]}
16... Kf7 {[%clk 0:01:44.7]} 17. Rac1 {[%clk 0:02:02.1]} 17... cxd4 {[%clk
0:01:39.9]} 18. exd4 {[%clk 0:02:03]} 18... Rac8 {[%clk 0:01:39.3]} 19. h6
{[%clk 0:02:03.1]} 19... g5 {[%clk 0:01:25.5]} 20. Rfe1 {[%clk 0:01:58.5]} 20...
Bf5 {[%clk 0:01:14.5]} 21. Qh5+ {[%clk 0:01:58.6]} 21... Bg6 {[%clk 0:01:14.2]}
22. Qe2 {[%clk 0:01:59.1]} 22... Qxe1+ {[%clk 0:00:22.5]} 23. Rxe1 {[%clk
0:01:58.3]} 23... Rhe8 {[%clk 0:00:21.3]} 24. Qb5 {[%clk 0:01:56.2]} 24... b6
{[%clk 0:00:19.9]} 25. Bd6 {[%clk 0:01:56.6]} 25... Bf5 {[%clk 0:00:17.1]} 26.
Qd7+ {[%clk 0:01:56]} 1-0

[Event "Early-Titled-Tuesday-Blitz-July-09-2024"]
[Site "Chess.com"]
[Date "2024.07.09"]
[Round "10"]
[White "Crazy_girl99"]
[Black "SpeedofLight0"]
[Result "0-1"]
[WhiteElo "2662"]
[BlackElo "3136"]
[TimeControl "180+1"]
[EndTime "9:54:30 PDT"]
[Termination "SpeedofLight0 won by checkmate"]

1. Nf3 {[%clk 0:02:59.9]} 1... d5 {[%clk 0:02:58.9]} 2. g3 {[%clk 0:02:59]} 2...
Nc6 {[%clk 0:02:58.6]} 3. d4 {[%clk 0:02:58.6]} 3... Bf5 {[%clk 0:02:58.9]} 4.
Bg2 {[%clk 0:02:59]} 4... Nb4 {[%clk 0:02:59.3]} 5. Na3 {[%clk 0:02:58.9]} 5...
e6 {[%clk 0:02:59.4]} 6. O-O {[%clk 0:02:59.2]} 6... Nc6 {[%clk 0:02:56.6]} 7.
Nb1 {[%clk 0:02:57.5]} 7... Nb4 {[%clk 0:02:55.1]} 8. Ne1 {[%clk 0:02:57.5]}
8... a5 {[%clk 0:02:51.4]} 9. a3 {[%clk 0:02:57.3]} 9... Nc6 {[%clk 0:02:51.6]}
10. Bf4 {[%clk 0:02:55.5]} 10... Nf6 {[%clk 0:02:46.6]} 11. Nd2 {[%clk
0:02:55.6]} 11... Nxd4 {[%clk 0:02:45.5]} 12. c4 {[%clk 0:02:52.6]} 12... Bd6
{[%clk 0:02:27.9]} 13. Be3 {[%clk 0:02:48]} 13... Nc6 {[%clk 0:02:25]} 14. cxd5
{[%clk 0:02:44.2]} 14... Nxd5 {[%clk 0:02:25.1]} 15. Nc4 {[%clk 0:02:40.2]}
15... Be7 {[%clk 0:02:20.8]} 16. Rc1 {[%clk 0:02:35.5]} 16... O-O {[%clk
0:02:18.1]} 17. Nd3 {[%clk 0:02:32.3]} 17... Bf6 {[%clk 0:02:07.4]} 18. Qb3
{[%clk 0:02:31.6]} 18... Nxe3 {[%clk 0:01:59.6]} 19. fxe3 {[%clk 0:02:31.6]}
19... Rb8 {[%clk 0:01:51.4]} 20. Rcd1 {[%clk 0:02:27.1]} 20... Qe7 {[%clk
0:01:49.6]} 21. e4 {[%clk 0:02:25.4]} 21... Nd4 {[%clk 0:01:48.1]} 22. Qa2
{[%clk 0:02:22.4]} 22... Bg4 {[%clk 0:01:43.6]} 23. Bf3 {[%clk 0:02:20.5]} 23...
Nxe2+ {[%clk 0:01:42.4]} 24. Kg2 {[%clk 0:02:19.4]} 24... Bxf3+ {[%clk
0:01:42.6]} 25. Rxf3 {[%clk 0:02:19.8]} 25... Nd4 {[%clk 0:01:39.2]} 26. Rf2
{[%clk 0:02:20.4]} 26... a4 {[%clk 0:01:34.4]} 27. e5 {[%clk 0:02:20.4]} 27...
Bg5 {[%clk 0:01:34.8]} 28. Nf4 {[%clk 0:02:19.8]} 28... Nf5 {[%clk 0:01:33.8]}
29. Rd3 {[%clk 0:02:13]} 29... Rfd8 {[%clk 0:01:32.6]} 30. Qb1 {[%clk 0:02:13]}
30... b5 {[%clk 0:01:32.1]} 31. Nd2 {[%clk 0:02:13.3]} 31... Bxf4 {[%clk
0:01:26]} 32. Rxf4 {[%clk 0:02:10]} 32... Qc5 {[%clk 0:01:26.4]} 33. Ne4 {[%clk
0:02:09.5]} 33... Qxe5 {[%clk 0:01:19.9]} 34. Nf2 {[%clk 0:02:07.2]} 34... h5
{[%clk 0:01:16.9]} 35. Qf1 {[%clk 0:02:03.8]} 35... Ne3+ {[%clk 0:01:16.8]} 36.
Rxe3 {[%clk 0:02:03]} 36... Qxe3 {[%clk 0:01:17.7]} 37. Ne4 {[%clk 0:02:03.4]}
37... f5 {[%clk 0:01:13.3]} 38. Ng5 {[%clk 0:02:02.7]} 38... Rd2+ {[%clk
0:01:13.4]} 39. Kh3 {[%clk 0:02:01.1]} 39... Qe2 {[%clk 0:01:12.6]} 40. Qg1
{[%clk 0:01:59.3]} 40... e5 {[%clk 0:01:02.1]} 41. Rh4 {[%clk 0:01:57.6]} 41...
Rb6 {[%clk 0:00:59.5]} 42. Rb4 {[%clk 0:01:46.4]} 42... Qg4+ {[%clk 0:00:59.2]}
43. Rxg4 {[%clk 0:01:46.6]} 43... hxg4+ {[%clk 0:01:00.1]} 44. Kh4 {[%clk
0:01:47.2]} 44... Rh6# {[%clk 0:01:01]} 0-1

[Event "Early-Titled-Tuesday-Blitz-July-09-2024"]
[Site "Chess.com"]
[Date "2024.07.09"]
[Round "10"]
[White "IMGC"]
[Black "GeorgiosSouleidis"]
[Result "1-0"]
[WhiteElo "2480"]
[BlackElo "2630"]
[TimeControl "180+1"]
[EndTime "9:54:30 PDT"]
[Termination "IMGC won by checkmate"]

1. Nf3 {[%clk 0:03:00.9]} 1... Nf6 {[%clk 0:02:58.8]} 2. e3 {[%clk 0:03:00]}
2... g6 {[%clk 0:02:59.3]} 3. d4 {[%clk 0:02:59]} 3... Bg7 {[%clk 0:03:00]} 4.
b3 {[%clk 0:02:59]} 4... O-O {[%clk 0:03:00.9]} 5. Bb2 {[%clk 0:02:59.1]} 5...
c5 {[%clk 0:02:59.3]} 6. Nbd2 {[%clk 0:02:58.7]} 6... cxd4 {[%clk 0:02:57.4]} 7.
exd4 {[%clk 0:02:59.1]} 7... d5 {[%clk 0:02:57.2]} 8. h3 {[%clk 0:02:58.3]} 8...
Nc6 {[%clk 0:02:57.7]} 9. c3 {[%clk 0:02:55.7]} 9... Bf5 {[%clk 0:02:57.5]} 10.
Be2 {[%clk 0:02:55.1]} 10... h5 {[%clk 0:02:55.2]} 11. O-O {[%clk 0:02:55.2]}
11... Rc8 {[%clk 0:02:53.8]} 12. Re1 {[%clk 0:02:55.7]} 12... Re8 {[%clk
0:02:54]} 13. Bf1 {[%clk 0:02:56.3]} 13... a6 {[%clk 0:02:54.4]} 14. Ne5 {[%clk
0:02:55]} 14... Nxe5 {[%clk 0:02:49.8]} 15. dxe5 {[%clk 0:02:55.9]} 15... Nd7
{[%clk 0:02:48.1]} 16. c4 {[%clk 0:02:47]} 16... dxc4 {[%clk 0:02:40.3]} 17.
Nxc4 {[%clk 0:02:36.8]} 17... b5 {[%clk 0:02:40.2]} 18. Ne3 {[%clk 0:02:29]}
18... Be4 {[%clk 0:02:20.2]} 19. Nd5 {[%clk 0:02:16.8]} 19... Bxd5 {[%clk
0:01:50.3]} 20. Qxd5 {[%clk 0:02:14.8]} 20... Rc2 {[%clk 0:01:49.7]} 21. e6
{[%clk 0:01:55.4]} 21... fxe6 {[%clk 0:01:18.8]} 22. Qxe6+ {[%clk 0:01:52.6]}
22... Kh7 {[%clk 0:01:13.2]} 23. Bxg7 {[%clk 0:01:49.8]} 23... Kxg7 {[%clk
0:01:10.8]} 24. Bd3 {[%clk 0:01:48.1]} 24... Rc5 {[%clk 0:00:43.9]} 25. Qxg6+
{[%clk 0:01:45.8]} 25... Kf8 {[%clk 0:00:44.5]} 26. Qh6+ {[%clk 0:01:39.3]}
26... Kg8 {[%clk 0:00:43.3]} 27. Bh7+ {[%clk 0:01:38.7]} 27... Kf7 {[%clk
0:00:41.5]} 28. Qg6+ {[%clk 0:01:35.5]} 28... Kf8 {[%clk 0:00:41.3]} 29. Qg8#
{[%clk 0:01:36.4]} 1-0